fUST/lending_fUST_20251116
["ID","MTS","AMOUNT","RATE_DAILY","PERIOD"]
[394080584,1763250090155,-300.0,0.00018971,2]
[394080585,1763250094427,-237.19728537,0.00018971,2]
[394080586,1763250096943,-167.98166249,0.00018971,2]
[394080587,1763250154116,520.988857,0.0003283,120]
[394080589,1763250502746,-399.00249161,0.00018663,2]
[394080590,1763250505874,-506.31089864,0.00018663,2]
[394080592,1763250540816,150.0,0.00032876,120]
[394080622,1763250637648,-320.80769379,0.00018663,2]
[394080623,1763250637660,-77.87891596,0.00018663,2]
[394080624,1763250637669,-150.0,0.0001877,2]
[394080625,1763250637689,-1820.10211668,0.00018958,2]
[394080626,1763250637700,-1109.5471754,0.00018958,2]
[394080627,1763250637711,-4062.97105214,0.00018971,2]
[394080628,1763250637720,-1200.0,0.00019055,2]
[394080629,1763250637729,-300.0,0.00019056,2]
[394080630,1763250637739,-300.0,0.00019056,2]
[394080631,1763250637749,-300.0,0.00019056,2]
[394080632,1763250637760,-300.0,0.00019056,2]
[394080633,1763250637769,-276.63787452,0.00019057,2]
[394080634,1763250637781,-36.36212548,0.00019057,2]
[394080635,1763250637790,-1305.0,0.00019058,2]
[394080636,1763250637800,-4240.79392272,0.00019058,2]
[394080637,1763250637811,-3291.06443375,0.00019058,2]
[394080638,1763250637822,-279.10748082,0.00019058,2]
[394080667,1763250639890,-16360.97718379,0.00019058,2]
[394080671,1763250640065,-3e-08,0.00019058,2]
[394080769,1763250643179,-553.08252301,0.00019058,2]
[394080770,1763250643191,-25274.97445588,0.00019058,2]
[394080771,1763250643200,-500.0,0.00019058,2]
[394080772,1763250643210,-346.40368545,0.00019058,2]
[394080773,1763250643219,-500.0,0.00019058,2]
[394080774,1763250643228,-566.7212456,0.00019058,2]
[394080775,1763250643237,-636.97720619,0.00019058,2]
[394080776,1763250643246,-4893.75705469,0.00019059,2]
[394081198,1763250650044,667.57735,0.00013699,2]
[394081199,1763250712768,-1215.85,0.00018869,2]
[394081200,1763250712791,-91.15,0.00018869,2]
[394081201,1763250754478,494.939414,0.00032242,120]
[394081202,1763250862302,-97.069,0.00018869,2]
[394081203,1763250862326,-574.85678571,0.000189,2]
[394081204,1763250865441,-170.11,0.000189,2]
[394081205,1763251012261,-3350.49398737,0.00018711,2]
[394081206,1763251016403,-1217.11043856,0.00018711,2]
[394081207,1763251017789,-237.88956144,0.00018711,2]
[394081208,1763251042245,-1684.15,0.00018524,2]
[394081209,1763251056651,1684.15,0.0001826,2]
[394081210,1763251070485,168.0516277,0.00018,2]
[394081212,1763251189944,5000.0,0.0001826,2]
[394081213,1763251212931,5000.0,0.0001826,2]
[394081214,1763251221028,1606.46072714,0.0001826,2]
[394081215,1763251236150,4571.84470032,0.0001826,2]
[394081218,1763251680605,838.0250711,0.0001788,2]
[394081219,1763251683485,193.21,0.00016084,2]
[394081226,1763251741368,150.0,0.00032875,120]
[394081267,1763251832127,-695.7277321,0.000186,2]
[394081278,1763251837885,-114.59460946,0.000186,2]
[394081279,1763251837894,-150.0,0.00018604,2]
[394081280,1763251837903,-2563.44313057,0.00018788,2]
[394081282,1763251837912,-983.89,0.000188,2]
[394081283,1763251837922,-1200.0,0.00018871,2]
[394081284,1763251837931,-2890.60878541,0.00018872,2]
[394081285,1763251837940,-1000.0,0.00018879,2]
[394081286,1763251837950,-1000.0,0.00018879,2]
[394081287,1763251837959,-1000.0,0.00018879,2]
[394081288,1763251837968,-1000.0,0.00018879,2]
[394081289,1763251837977,-1000.0,0.00018879,2]
[394081290,1763251837987,-1000.0,0.00018879,2]
[394081291,1763251837996,-1000.0,0.00018879,2]
[394081292,1763251838005,-1000.0,0.00018879,2]
[394081293,1763251838015,-1000.0,0.00018879,2]
[394081294,1763251838024,-1000.0,0.00018879,2]
[394081295,1763251838033,-250.0,0.00018879,2]
[394081296,1763251838043,-809.34359377,0.00018879,2]
[394081297,1763251838052,-250.0,0.00018879,2]
[394081298,1763251838062,-250.0,0.00018879,2]
[394081299,1763251838071,-250.0,0.00018879,2]
[394081300,1763251838080,-250.0,0.00018879,2]
[394081301,1763251838090,-250.0,0.00018879,2]
[394081302,1763251838099,-250.0,0.00018879,2]
[394081303,1763251838108,-250.0,0.00018879,2]
[394081304,1763251838117,-250.0,0.00018879,2]
[394081305,1763251838127,-250.0,0.00018879,2]
[394081306,1763251838136,-250.0,0.00018879,2]
[394081307,1763251838145,-209.40437684,0.00018879,2]
[394081308,1763251838155,-300.0,0.00018879,2]
[394081309,1763251838164,-801.47,0.0001888,3]
[394081310,1763251838173,-400.74,0.0001888,3]
[394081311,1763251838182,-200.37,0.0001888,3]
[394081312,1763251838191,-200.37,0.0001888,3]
[394081313,1763251838200,-2047.86309348,0.00018882,2]
[394081314,1763251838210,-500.0,0.00018887,2]
[394081315,1763251838219,-500.0,0.00018887,2]
[394081316,1763251838228,-500.0,0.00018887,2]
[394081317,1763251838238,-500.0,0.00018887,2]
[394081318,1763251838247,-500.0,0.00018887,2]
[394081319,1763251838256,-500.0,0.00018887,2]
[394081320,1763251838266,-500.0,0.00018887,2]
[394081321,1763251838276,-500.0,0.00018887,2]
[394081322,1763251838286,-500.0,0.00018887,2]
[394081323,1763251838295,-500.0,0.00018887,2]
[394081324,1763251838305,-500.0,0.00018887,2]
[394081325,1763251838314,-500.0,0.00018887,2]
[394081326,1763251838323,-293.15147409,0.00018887,2]
[394081327,1763251838332,-600.94249693,0.00018887,2]
[394081328,1763251838342,-500.0,0.00018887,2]
[394081329,1763251838351,-197.86764559,0.00018887,2]
[394081330,1763251838360,-500.0,0.00018887,2]
[394081331,1763251838369,-500.0,0.00018887,2]
[394081332,1763251838379,-500.0,0.00018887,2]
[394081333,1763251838388,-500.0,0.00018887,2]
[394081334,1763251838398,-500.0,0.00018887,2]
[394081335,1763251838407,-500.0,0.00018887,2]
[394081336,1763251838416,-500.0,0.00018887,2]
[394081337,1763251838426,-500.0,0.00018887,2]
[394081338,1763251838435,-500.0,0.00018887,2]
[394081339,1763251838445,-500.0,0.00018887,2]
[394081340,1763251838454,-500.0,0.00018887,2]
[394081341,1763251838463,-500.0,0.00018887,2]
[394081342,1763251838472,-554.06034931,0.00018887,2]
[394081343,1763251838481,-500.0,0.00018887,2]
[394081344,1763251838492,-500.0,0.00018887,2]
[394081345,1763251838503,-500.0,0.00018887,2]
[394081346,1763251838512,-12378.08271548,0.00018888,2]
[394081347,1763251838524,-37621.91728452,0.00018888,2]
[394081348,1763251838535,-500.0,0.00018889,2]
[394081349,1763251838544,-392.5579432,0.00018889,2]
[394081350,1763251838554,-500.0,0.00018889,2]
[394081351,1763251838563,-500.0,0.00018889,2]
[394081352,1763251838574,-500.0,0.00018889,2]
[394081353,1763251838583,-238.85651132,0.00018889,2]
[394081354,1763251838593,-500.0,0.00018889,2]
[394081355,1763251838603,-500.0,0.00018889,2]
[394081356,1763251838612,-180.36782809,0.0001889,2]
[394081357,1763251838622,-151.0,0.0001889,2]
[394081358,1763251838632,-151.0,0.0001889,2]
[394081359,1763251838641,-8460.82888408,0.0001889,2]
[394081360,1763251838656,-794.0512496,0.0001889,2]
[394081361,1763251838667,-2139.58543488,0.0001889,2]
[394081362,1763251838679,-603.58391856,0.0001889,2]
[394081363,1763251838690,-369.70097279,0.0001889,2]
[394081414,1763251840279,-0.00714714,0.0001889,2]
[394081416,1763251840290,-150.99285286,0.0001889,2]
[394081418,1763251840300,-1595.71080331,0.0001889,2]
[394081704,1763251843130,-1782.82971278,0.0001889,2]
[394081706,1763251843141,-530.0727769,0.0001889,2]
[394081708,1763251843152,-4165.2257057,0.0001889,2]
[394082347,1763252017378,-150.576,0.00018872,2]
[394082348,1763252017402,-216.23147641,0.00018885,2]
[394082349,1763252018956,-300.0,0.00018885,2]
[394082350,1763252022664,-181.88495492,0.00018885,2]
[394082351,1763252024740,-500.0,0.00018885,2]
[394082362,1763252212343,-354.12447182,0.00018786,2]
[394082363,1763252217088,-150.0,0.00018835,2]
[394082364,1763252217113,-150.0,0.00018872,2]
[394082365,1763252218590,-194.8149599,0.00018872,2]
[394082366,1763252220081,-222.2980915,0.00018872,2]
[394082385,1763252557231,-433.12676315,0.00018495,2]
[394082386,1763252559357,-358.32391441,0.00018495,2]
[394082387,1763252562438,-337.66952295,0.00018495,2]
[394082388,1763252566004,-442.73966579,0.00018495,2]
[394082389,1763252567397,-170.11,0.00018495,2]
[394082390,1763252569456,-478.26213901,0.00018495,2]
[394082391,1763252572392,-29.70562482,0.00018495,2]
[394082392,1763252572415,-132.38427115,0.00018629,2]
[394082393,1763252573856,-234.64001759,0.00018629,2]
[394082394,1763252574609,400.071575,0.00030137,120]
[394082395,1763252577009,-165.05483922,0.00018629,2]
[394082396,1763252581236,-300.0,0.00018629,2]
[394082397,1763252583273,-208.68983792,0.00018629,2]
[394082398,1763252588384,-412.40692638,0.00018629,2]
[394082399,1763252590443,-18.82410774,0.00018629,2]
[394082400,1763252590466,-184.80898443,0.00018682,2]
[394082401,1763252591957,-162.506587,0.00018682,2]
[394082402,1763252593948,-291.36681348,0.00018682,2]
[394082403,1763252595418,-254.54025844,0.00018682,2]
[394082404,1763252598031,-308.34641219,0.00018682,2]
[394082405,1763252600539,-263.46795628,0.00018682,2]
[394082406,1763252602017,-288.37768498,0.00018682,2]
[394082407,1763252603572,-200.873582,0.00018682,2]
[394082408,1763252606150,-205.35222793,0.00018682,2]
[394082409,1763252608088,-435.15983342,0.00018682,2]
[394082410,1763252610991,-181.682031,0.00018682,2]
[394082411,1763252613654,-336.96338532,0.00018658,2]
[394082412,1763252615184,-300.0,0.00018658,2]
[394082413,1763252617796,-268.03455177,0.00018658,2]
[394082414,1763252622916,-164.91635457,0.00018658,2]
[394082416,1763252624631,-164.91635457,0.00018658,2]
[394082417,1763252626170,-260.48795853,0.00018658,2]
[394082418,1763252626192,-9.67933233,0.00018676,2]
[394082419,1763252628735,-706.25541983,0.00018676,2]
[394082420,1763252630328,-195.50864543,0.00018676,2]
[394082421,1763252635039,-153.16895215,0.00018676,2]
[394082422,1763252637136,-250.0,0.00018676,2]
[394082423,1763252639623,-178.18563153,0.00018676,2]
[394082427,1763252642788,-189.90951677,0.00018676,2]
[394082429,1763252646977,-289.44003765,0.00018676,2]
[394082430,1763252649479,-413.16149395,0.00018676,2]
[394082431,1763252651505,-265.33296414,0.00018676,2]
[394082432,1763252651528,-234.66703586,0.00018682,2]
[394082433,1763252653123,-356.50548942,0.00018682,2]
[394082454,1763252750515,168.0,0.00018649,2]
[394082470,1763252851874,3087.07271297,0.00018678,2]
[394082471,1763252857973,1724.60096834,0.0001871,2]
[394082472,1763252865581,-150.0,0.0001872,2]
[394082475,1763252880920,-3087.07271296,0.00018733,2]
[394082476,1763252881598,161.28,5e-05,2]
[394082477,1763252882541,161.28,6.2e-05,2]
[394082478,1763252882899,161.28,7.3e-05,2]
[394082479,1763252883346,161.28,8.5e-05,2]
[394082480,1763252883706,161.28,9.7e-05,2]
[394082483,1763252884064,161.28,0.000108,2]
[394082494,1763252895928,-534.32,0.00018757,3]
[394082495,1763252895961,-267.16,0.00018757,3]
[394082496,1763252895993,-801.48,0.00018757,3]
[394082507,1763252902499,2651.5788166,0.00018665,2]
[394082511,1763252911121,-1472.0,0.00018758,2]
[394082525,1763252922090,547.42540258,0.000187,2]
[394082526,1763252926176,-500.0,0.00018764,2]
[394082527,1763252926209,-636.64477309,0.00018764,2]
[394082528,1763252926241,-303.77323217,0.00018764,2]
[394082529,1763252926273,-590.43300152,0.00018764,2]
[394082530,1763252926308,-1152.86999066,0.00018764,2]
[394082531,1763252926340,-358.75338077,0.00018764,2]
[394082532,1763252926375,-1152.86999066,0.00018764,2]
[394082533,1763252926701,-1152.86999066,0.00018764,2]
[394082534,1763252926738,-1152.86999066,0.00018764,2]
[394082535,1763252926775,-1152.86999066,0.00018764,2]
[394082536,1763252926812,-1152.86999066,0.00018764,2]
[394082537,1763252926894,-1152.86999066,0.00018764,2]
[394082538,1763252926931,-1152.86999066,0.00018764,2]
[394082539,1763252926970,-1152.86999066,0.00018764,2]
[394082540,1763252927008,-1152.86999066,0.00018764,2]
[394082541,1763252927340,-1152.86999066,0.00018764,2]
[394082542,1763252927378,-1152.86999066,0.00018764,2]
[394082543,1763252927413,-1152.86999066,0.00018764,2]
[394082544,1763252927449,-1152.86999066,0.00018764,2]
[394082545,1763252927614,-1152.86999066,0.00018764,2]
[394082546,1763252927652,-1152.86999066,0.00018764,2]
[394082547,1763252927690,-1152.86999066,0.00018764,2]
[394082548,1763252927728,-1152.86999066,0.00018764,2]
[394082549,1763252927855,-1152.86999066,0.00018764,2]
[394082550,1763252927895,-1152.86999066,0.00018764,2]
[394082551,1763252927934,-1152.86999066,0.00018764,2]
[394082552,1763252927973,-1152.86999066,0.00018764,2]
[394082553,1763252928105,-1152.86999066,0.00018764,2]
[394082554,1763252928143,-1152.86999066,0.00018764,2]
[394082555,1763252928179,-1152.86999066,0.00018764,2]
[394082556,1763252928216,-1152.86999066,0.00018764,2]
[394082557,1763252928388,-1152.86999066,0.00018764,2]
[394082558,1763252928423,-1152.86999066,0.00018764,2]
[394082559,1763252928459,-1152.86999066,0.00018764,2]
[394082560,1763252928494,-1152.86999066,0.00018764,2]
[394082561,1763252933661,-200.12729724,0.00018764,2]
[394082564,1763252935295,-952.74269342,0.00018764,2]
[394082565,1763252935350,-1152.86999066,0.00018764,2]
[394082567,1763252935403,-1152.86999066,0.00018764,2]
[394082569,1763252935453,-1152.86999066,0.00018764,2]
[394082571,1763252935503,-24.43467854,0.00018764,2]
[394082575,1763252935734,-1128.43531212,0.00018764,2]
[394082576,1763252935779,-1152.86999066,0.00018764,2]
[394082577,1763252935827,-1152.86999066,0.00018764,2]
[394082578,1763252935876,-1152.86999066,0.00018764,2]
[394082580,1763252936049,-167.82076165,0.00018764,2]
[394082581,1763252936128,-985.04922901,0.00018764,2]
[394082586,1763252936959,200.12729724,0.00018577,2]
[394082589,1763252937607,-403.51387007,0.00018765,2]
[394082590,1763252937633,-396.48612993,0.00018765,2]
[394082593,1763252939030,-103.51387007,0.00018765,2]
[394082594,1763252939055,-230.08612993,0.00018765,2]
[394082596,1763252941062,-269.91387007,0.00018765,2]
[394082597,1763252941093,-500.0,0.00018765,2]
[394082598,1763252941119,-500.0,0.00018765,2]
[394082599,1763252941143,-603.0581252,0.00018765,2]
[394082600,1763252941167,-300.0,0.00018765,2]
[394082601,1763252941191,-26.78625483,0.00018765,2]
[394082602,1763252941243,150.0,0.00032874,120]
[394082604,1763252941573,153.0,5e-05,2]
[394082605,1763252941876,153.0,5.2e-05,2]
[394082609,1763252942247,153.0,5.4e-05,2]
[394082611,1763252942633,153.0,5.6e-05,2]
[394082614,1763252942968,153.0,5.7e-05,2]
[394082615,1763252943004,-247.61772679,0.00018765,2]
[394082616,1763252943079,300.0,0.00018764,2]
[394082618,1763252943285,153.0,5.9e-05,2]
[394082621,1763252943587,153.0,6.1e-05,2]
[394082623,1763252943895,153.0,6.3e-05,2]
[394082624,1763252944221,153.0,6.5e-05,2]
[394082625,1763252944499,-335.12864569,0.00018765,2]
[394082626,1763252944534,153.0,6.7e-05,2]
[394082627,1763252944818,153.0,6.8e-05,2]
[394082628,1763252945128,153.0,7e-05,2]
[394082629,1763252945281,3748.79673854,0.00018764,2]
[394082630,1763252945415,153.0,7.2e-05,2]
[394082631,1763252945736,153.0,7.4e-05,2]
[394082632,1763252945982,-181.20326146,0.00018765,2]
[394082633,1763252946033,153.0,7.6e-05,2]
[394082634,1763252946352,153.0,7.8e-05,2]
[394082635,1763252946668,153.0,7.9e-05,2]
[394082636,1763252946965,153.0,8.1e-05,2]
[394082637,1763252947270,153.0,8.3e-05,2]
[394082638,1763252947567,153.0,8.5e-05,2]
[394082639,1763252947857,153.0,8.7e-05,2]
[394082640,1763252948183,153.0,8.9e-05,2]
[394082641,1763252948479,153.0,9.1e-05,2]
[394082642,1763252948796,153.0,9.2e-05,2]
[394082643,1763252949102,108.9875062,9.4e-05,2]
[394082644,1763252949138,44.0124938,9.4e-05,2]
[394082645,1763252949386,153.0,9.6e-05,2]
[394082646,1763252949679,153.0,9.8e-05,2]
[394082647,1763252950080,153.0,0.0001,2]
[394082648,1763252950393,153.0,0.000102,2]
[394082649,1763252950679,153.0,0.000103,2]
[394082650,1763252950972,153.0,0.000105,2]
[394082651,1763252951277,153.0,0.000107,2]
[394082652,1763252951578,153.0,0.000109,2]
[394082653,1763252951870,153.0,0.000111,2]
[394082654,1763252952150,153.0,0.000113,2]
[394082655,1763252952443,153.0,0.000114,2]
[394082656,1763252952733,153.0,0.000116,2]
[394082657,1763252953029,153.0,0.000118,2]
[394082658,1763252953349,153.0,0.00012,2]
[394082660,1763252953671,5966.81,5e-05,2]
[394082669,1763252955852,1820.32103789,0.00018764,2]
[394082671,1763252955903,26.86646831,0.00018764,2]
[394082672,1763252962303,-1480.54644825,0.00018577,2]
[394082673,1763252963816,-383.49920011,0.00018577,2]
[394082674,1763252966106,-3135.95435164,0.00018577,2]
[394082675,1763252966185,-384.63505044,0.00018764,2]
[394082676,1763252967639,-178.47434018,0.00018764,2]
[394082677,1763252968244,181.20326146,0.0001826,2]
[394082678,1763252971186,-838.74520133,0.00018764,2]
[394082679,1763252972915,-223.81610509,0.00018764,2]
[394082705,1763252983274,3824.84499109,0.00018754,2]
[394082706,1763252991068,5000.0,0.00018754,2]
[394082707,1763253001647,160.05,5e-05,2]
[394082708,1763253002040,160.05,5.1e-05,2]
[394082709,1763253002248,160.05,5.3e-05,2]
[394082710,1763253002513,160.05,5.4e-05,2]
[394082711,1763253002804,160.05,5.6e-05,2]
[394082712,1763253003122,160.05,5.7e-05,2]
[394082713,1763253003398,160.05,5.9e-05,2]
[394082714,1763253003681,54.81500891,6e-05,2]
[394082715,1763253003709,105.23499109,6e-05,2]
[394082716,1763253003999,160.05,6.1e-05,2]
[394082717,1763253004342,160.05,6.3e-05,2]
[394082718,1763253004630,160.05,6.4e-05,2]
[394082719,1763253004946,160.05,6.6e-05,2]
[394082720,1763253005259,160.05,6.7e-05,2]
[394082721,1763253005531,160.05,6.9e-05,2]
[394082722,1763253005873,160.05,7e-05,2]
[394082723,1763253006230,160.05,7.1e-05,2]
[394082724,1763253006559,160.05,7.3e-05,2]
[394082725,1763253006839,160.05,7.4e-05,2]
[394082726,1763253007176,160.05,7.6e-05,2]
[394082727,1763253007512,160.05,7.7e-05,2]
[394082728,1763253007547,180.36,0.00018754,2]
[394082729,1763253007810,160.05,7.9e-05,2]
[394082731,1763253008946,160.05,8e-05,2]
[394082732,1763253009272,160.05,8.1e-05,2]
[394082733,1763253009561,160.05,8.3e-05,2]
[394082734,1763253009845,160.05,8.4e-05,2]
[394082735,1763253010124,160.05,8.6e-05,2]
[394082736,1763253010410,160.05,8.7e-05,2]
[394082737,1763253010710,160.05,8.9e-05,2]
[394082738,1763253011033,160.05,9e-05,2]
[394082739,1763253011314,160.05,9.1e-05,2]
[394082740,1763253011602,160.05,9.3e-05,2]
[394082741,1763253011901,160.05,9.4e-05,2]
[394082742,1763253012209,160.05,9.6e-05,2]
[394082743,1763253012499,160.05,9.7e-05,2]
[394082744,1763253012802,160.05,9.9e-05,2]
[394082745,1763253013080,160.05,0.0001,2]
[394082746,1763253013385,160.05,0.000101,2]
[394082747,1763253013641,160.05,0.000103,2]
[394082748,1763253013931,160.05,0.000104,2]
[394082749,1763253014233,160.05,0.000106,2]
[394082750,1763253014531,160.05,0.000107,2]
[394082751,1763253014934,160.05,0.000109,2]
[394082752,1763253015212,160.05,0.00011,2]
[394082753,1763253015497,160.05,0.000111,2]
[394082754,1763253015785,160.05,0.000113,2]
[394082755,1763253016061,160.05,0.000114,2]
[394082756,1763253016989,160.05,0.000116,2]
[394082757,1763253017314,160.05,0.000117,2]
[394082758,1763253017587,160.05,0.000119,2]
[394082792,1763253032079,-300.0,0.00018763,2]
[394082794,1763253032089,-910.0,0.00018763,2]
[394082796,1763253032098,-1200.0,0.00018763,2]
[394082798,1763253032109,-167.78387254,0.00018764,2]
[394082800,1763253032120,-1820.32103789,0.00018764,2]
[394082802,1763253032130,-1820.32103789,0.00018764,2]
[394082804,1763253032140,-1820.32103789,0.00018764,2]
[394082806,1763253032149,-1820.32103789,0.00018764,2]
[394082808,1763253032159,-1820.32103789,0.00018764,2]
[394082810,1763253032168,-1820.32103789,0.00018764,2]
[394082812,1763253032178,-1820.32103789,0.00018764,2]
[394082814,1763253032187,-1820.32103789,0.00018764,2]
[394082816,1763253032197,-1820.32103789,0.00018764,2]
[394082818,1763253032206,-1820.32103789,0.00018764,2]
[394082820,1763253032215,-1820.32103789,0.00018764,2]
[394082822,1763253032224,-1820.32103789,0.00018764,2]
[394082824,1763253032234,-1820.32103789,0.00018764,2]
[394082826,1763253032243,-1820.32103789,0.00018764,2]
[394082828,1763253032253,-1820.32103789,0.00018764,2]
[394082839,1763253032342,-1820.32103789,0.00018764,2]
[394082841,1763253032354,-1820.32103789,0.00018764,2]
[394082843,1763253032364,-1820.32103789,0.00018764,2]
[394082845,1763253032373,-1820.32103789,0.00018764,2]
[394082847,1763253032383,-1820.32103789,0.00018764,2]
[394082849,1763253032392,-1820.32103789,0.00018764,2]
[394082851,1763253032402,-1820.32103789,0.00018764,2]
[394082853,1763253032411,-1820.32103789,0.00018764,2]
[394082855,1763253032421,-1820.32103789,0.00018764,2]
[394082857,1763253032431,-1820.32103789,0.00018764,2]
[394082859,1763253032442,-1820.32103789,0.00018764,2]
[394082861,1763253032452,-1820.32103789,0.00018764,2]
[394082863,1763253032462,-49209.26411123,0.00018765,2]
[394082865,1763253032472,-919.36272018,0.00018767,2]
[394082867,1763253032482,-209.40437684,0.00018767,2]
[394082869,1763253032491,-250.0,0.00018767,2]
[394082871,1763253032501,-250.0,0.00018767,2]
[394082873,1763253032511,-250.0,0.00018767,2]
[394082875,1763253032520,-250.0,0.00018767,2]
[394082876,1763253032530,-250.0,0.00018767,2]
[394082878,1763253032539,-250.0,0.00018767,2]
[394082880,1763253032548,-250.0,0.00018767,2]
[394082882,1763253032557,-250.0,0.00018767,2]
[394082884,1763253032567,-250.0,0.00018767,2]
[394082886,1763253032576,-250.0,0.00018767,2]
[394082888,1763253032586,-250.0,0.00018767,2]
[394082890,1763253032595,-151.0,0.00018767,2]
[394082892,1763253032604,-151.0,0.00018767,2]
[394082893,1763253032613,-151.0,0.00018767,2]
[394082895,1763253032623,-151.0,0.00018767,2]
[394082897,1763253032632,-151.0,0.00018767,2]
[394082899,1763253032642,-151.0,0.00018767,2]
[394082901,1763253032651,-500.0,0.00018773,2]
[394082903,1763253032660,-500.0,0.00018773,2]
[394082905,1763253032669,-500.0,0.00018773,2]
[394082907,1763253032678,-500.0,0.00018773,2]
[394082909,1763253032687,-152.310729,0.00018775,2]
[394082911,1763253032697,-151.0,0.00018775,2]
[394082913,1763253032706,-272.650902,0.00018775,2]
[394082915,1763253032715,-152.998225,0.00018776,2]
[394082917,1763253032724,-151.0,0.00018776,2]
[394082919,1763253032733,-90.6103501,0.00018776,2]
[394083015,1763253037976,-151.0,0.00018767,2]
[394083016,1763253037986,-151.0,0.00018767,2]
[394083017,1763253037996,-151.0,0.00018767,2]
[394083018,1763253038005,-151.0,0.00018767,2]
[394083019,1763253038106,-151.0,0.00018767,2]
[394083020,1763253038116,-151.0,0.00018767,2]
[394083021,1763253038128,-151.0,0.00018767,2]
[394083022,1763253038138,-124.34538107,0.00018767,2]
[394083025,1763253038151,-26.65461893,0.00018767,2]
[394083026,1763253038160,-151.0,0.00018767,2]
[394083027,1763253038170,-151.0,0.00018767,2]
[394083028,1763253038180,-175.66556412,0.00018776,2]
[394083029,1763253038191,-233.72408578,0.00018776,2]
[394083030,1763253038201,-500.0,0.00018776,2]
[394083031,1763253038210,-491.09857674,0.00018776,2]
[394083032,1763253038222,-8.90142326,0.00018776,2]
[394083033,1763253038231,-500.0,0.00018776,2]
[394083034,1763253038240,-31.70879127,0.00018776,2]
[394083035,1763253038253,-468.29120873,0.00018776,2]
[394083036,1763253038262,-500.0,0.00018776,2]
[394083037,1763253038271,-500.0,0.00018776,2]
[394083038,1763253038280,-500.0,0.00018776,2]
[394083039,1763253038289,-500.0,0.00018776,2]
[394083040,1763253038298,-350.49709023,0.00018776,2]
[394083041,1763253038310,-149.50290977,0.00018776,2]
[394083042,1763253038319,-151.0,0.00018776,2]
[394083043,1763253038328,-158.71134326,0.00018776,2]
[394083044,1763253038338,-151.0,0.00018776,2]
[394083045,1763253038347,-350.0,0.00018776,2]
[394083046,1763253038356,-500.0,0.00018777,2]
[394083047,1763253038366,-126.68153995,0.00018777,2]
[394083048,1763253038387,-155.7781691,0.00018777,2]
[394083049,1763253038396,-500.0,0.00018777,2]
[394083050,1763253038406,-322.14068764,0.00018777,2]
[394083051,1763253038416,-500.0,0.00018777,2]
[394083052,1763253038427,-500.0,0.00018777,2]
[394083053,1763253038436,-180.36782809,0.00018777,2]
[394083054,1763253038446,-153.835,0.00018777,2]
[394083055,1763253038457,-151.0,0.00018777,2]
[394083056,1763253038466,-301.87,0.00018777,2]
[394083057,1763253038476,-500.0,0.00018777,2]
[394083058,1763253038486,-500.0,0.00018777,2]
[394083059,1763253038495,-500.0,0.00018777,2]
[394083060,1763253038505,-500.0,0.00018777,2]
[394083061,1763253038514,-500.0,0.00018777,2]
[394083062,1763253038524,-500.0,0.00018777,2]
[394083063,1763253038533,-500.0,0.00018777,2]
[394083064,1763253038543,-500.0,0.00018777,2]
[394083065,1763253038553,-500.0,0.00018777,2]
[394083066,1763253038562,-500.0,0.00018777,2]
[394083067,1763253038572,-500.0,0.00018777,2]
[394083068,1763253038582,-500.0,0.00018777,2]
[394083069,1763253038591,-500.0,0.00018777,2]
[394083070,1763253038601,-500.0,0.00018777,2]